bitfinex-derivatives/quotes_SOLF0:USTF0_20260203
["timestamp","ask_amount","ask_price","bid_price","bid_amount"]
[1770114876390,2.42807839,102.69,102.65,12.46426929]
[1770114878692,2.42807839,102.69,102.66,3.68926929]
[1770114883189,11.19897839,102.7,102.66,3.68926929]
[1770114883590,14.67346366,102.7,102.65,8.775]
[1770114884392,14.67346366,102.7,102.65,12.46426929]
[1770114885598,14.67346366,102.7,102.65,3.68926929]
[1770114887498,524.8906,102.72,102.65,3.68926929]
[1770114887499,2.42807839,102.68,102.65,3.68926929]
[1770114887896,2.42807839,102.68,102.64,8.7757]
[1770114888194,2.42807839,102.66,102.61,3.68926929]
[1770114888395,5.90256366,102.67,102.61,3.68926929]
[1770114889296,14.67596366,102.67,102.62,8.7775]
[1770114889497,14.67596366,102.67,102.62,12.46676929]
[1770114889996,2.42807839,102.67,102.63,3.68926929]
[1770114890704,2.42807839,102.67,102.63,12.46566929]
[1770114890900,14.67486366,102.69,102.64,3.77400404]
[1770114892101,2.42807839,102.67,102.62,12.44159143]
[1770114893006,2.42807839,102.67,102.63,3.66409143]
[1770114893501,8.7716,102.69,102.64,3.66409143]
[1770114893706,5.93058648,102.69,102.64,3.66409143]
[1770114894408,5.93058648,102.69,102.64,12.43929143]
[1770114895202,524.8906,102.72,102.63,8.7766]
[1770114895203,5.93058648,102.67,102.63,8.7766]
[1770114895404,2.42807839,102.67,102.63,12.44069143]
[1770114898209,2.42807839,102.67,102.63,3.66409143]
[1770114900811,11.20147839,102.67,102.63,3.66409143]
[1770114901409,14.70398648,102.67,102.61,12.44249143]
[1770114901712,3.50250809,102.66,102.61,12.44249143]
[1770114902907,11.20147839,102.67,102.62,12.44159143]
[1770114903109,2.42807839,102.67,102.62,3.66409143]
[1770114903506,390.96807839,102.69,102.64,12.43989143]
[1770114904013,2.42807839,102.67,102.62,3.66409143]
[1770114904707,2.42807839,102.67,102.62,12.44099143]
[1770114904912,2.42807839,102.67,102.6,138.99527839]
[1770114904913,2.42807839,102.67,102.63,3.66409143]
[1770114905518,2.42807839,102.67,102.63,12.44009143]
[1770114906720,2.42807839,102.67,102.63,3.66409143]
[1770114907215,2.42807839,102.67,102.63,12.44089143]
[1770114909918,2.42807839,102.69,102.65,3.66409143]
[1770114910222,392.04250809,102.7,102.65,3.66409143]
[1770114910223,5.93058648,102.7,102.65,3.66409143]
[1770114910624,8.7692,102.72,102.67,8.7732]
[1770114910825,14.69978648,102.72,102.67,3.66409143]
[1770114911328,5.93058648,102.7,102.64,3.66409143]
[1770114911619,5.93058648,102.7,102.63,136.5276]
[1770114911620,5.93058648,102.7,102.65,12.43899143]
[1770114912226,14.70138648,102.7,102.65,3.66409143]
[1770114912826,3.50250809,102.69,102.64,8.7758]
[1770114913026,2.42807839,102.68,102.64,8.7758]
[1770114913226,2.42807839,102.68,102.64,12.43989143]
[1770114913927,2.42807839,102.68,102.65,8.775]
[1770114914128,11.19887839,102.7,102.65,12.43909143]
[1770114914526,2.42807839,102.7,102.65,12.43909143]
[1770114915427,403.22058648,102.71,102.65,12.43909143]
[1770114916934,403.22058648,102.71,102.66,3.66409143]
[1770114917230,5.93058648,102.71,102.66,12.43789143]
[1770114918331,5.93058648,102.73,102.67,12.43689143]
[1770114918632,5.93058648,102.73,102.68,3.66409143]
[1770114919733,12.27080809,102.73,102.68,12.43589143]
[1770114920035,2.42807839,102.72,102.68,12.43589143]
[1770114921335,14.80469426,102.74,102.69,12.39709736]
[1770114921536,2.42807839,102.75,102.7,3.62569736]
[1770114921732,11.19527839,102.75,102.7,12.39639736]
[1770114922437,2.42807839,102.75,102.71,12.39559736]
[1770114922836,6.03729426,102.76,102.71,12.39559736]
[1770114923440,14.80299426,102.76,102.71,3.62569736]
[1770114923639,2.42807839,102.74,102.7,8.7707]
[1770114923838,2.42807839,102.74,102.7,12.39639736]
[1770114925040,6.03729426,102.76,102.71,12.39549736]
[1770114925637,2.42807839,102.76,102.72,12.39459736]
[1770114925836,6.02231131,102.78,102.73,3.62569736]
[1770114926329,2.42807839,102.78,102.74,3.62569736]
[1770114926534,6.02231131,102.8,102.74,3.62569736]
[1770114927434,6.02231131,102.8,102.75,8.7665]
[1770114927833,6.02231131,102.8,102.74,3.62569736]
[1770114928140,6.02231131,102.8,102.74,12.39299736]
[1770114928839,14.78471131,102.8,102.74,12.39299736]
[1770114930142,14.78471131,102.8,102.74,3.62569736]
[1770114930441,12.34532872,102.79,102.74,3.62569736]
[1770114932342,14.76971029,102.79,102.74,3.62569736]
[1770114933442,11.18748157,102.79,102.74,3.62569736]
[1770114937335,8.7631,102.79,102.74,3.62569736]
[1770114938645,12.36631378,102.79,102.74,3.62569736]
[1770114938943,14.77139087,102.78,102.73,12.39379736]
[1770114940245,14.77139087,102.78,102.73,3.62569736]
[1770114940642,14.77139087,102.78,102.71,3.62569736]
[1770114940643,12.3479093,102.77,102.71,3.62569736]
[1770114941042,2.42438157,102.76,102.71,3.62569736]
[1770114941238,11.19008157,102.76,102.71,3.62569736]
[1770114942341,3.61158924,102.75,102.65,136.4949]
[1770114942542,6.03597081,102.68,102.62,3.62569736]
[1770114942746,2.42438157,102.67,102.62,3.62569736]
[1770114942943,2.42438157,102.68,102.62,3.62569736]
[1770114943144,2.42438157,102.7,102.63,3.62569736]
[1770114943346,6.049782,102.71,102.63,3.62569736]
[1770114943644,3.62540043,102.68,102.62,3.62569736]
[1770114943845,6.049782,102.67,102.62,3.62569736]
[1770114944042,6.049782,102.67,102.59,2.42438157]
[1770114944043,2.42438157,102.65,102.59,3.62569736]
[1770114944237,3.62540043,102.67,102.59,3.62569736]
[1770114944448,2.42438157,102.66,102.6,3.62569736]
[1770114945248,2.42438157,102.64,102.6,3.62569736]
[1770114946444,3.66943277,102.68,102.6,3.62569736]
[1770114947052,3.66943277,102.67,102.6,3.62569736]
[1770114947251,10.17913692,102.67,102.6,3.62569736]
[1770114947454,3.66943277,102.66,102.6,3.62569736]
[1770114947745,3.66943277,102.64,102.58,3.62569736]
[1770114947944,3.66943277,102.66,102.58,3.62569736]
[1770114948148,3.66943277,102.66,102.59,3.62569736]
[1770114949649,3.66943277,102.64,102.57,3.62569736]
[1770114949950,3.66943277,102.64,102.56,8.7824]
[1770114950246,3.66943277,102.64,102.56,12.5752037]
[1770114950452,3.66943277,102.64,102.57,8.7817]
[1770114950650,3.66943277,102.64,102.57,12.5745037]
[1770114951254,3.58505727,102.63,102.57,3.7928037]
[1770114951845,3.58505727,102.63,102.57,12.5745037]
[1770114952954,3.58505727,102.62,102.55,3.56556093]
[1770114954256,3.58505727,102.62,102.56,12.34806093]
[1770114956358,3.58505727,102.62,102.54,136.6361]
[1770114956359,3.58505727,102.62,102.57,12.34736093]
[1770114958657,3.58505727,102.62,102.57,3.56556093]
[1770114959358,12.36275727,102.62,102.57,3.56556093]
[1770114959563,12.36275727,102.62,102.56,8.7827]
[1770114959766,3.58505727,102.6,102.55,3.56556093]
[1770114960156,3.58505727,102.6,102.52,146.47932305]
[1770114960366,3.58505727,102.6,102.53,3.56556093]
[1770114960866,3.58505727,102.6,102.55,8.7835]
[1770114961070,3.58505727,102.6,102.55,12.34906093]
[1770114961363,397.4385,102.62,102.55,12.34906093]
[1770114961364,392.24505727,102.62,102.56,3.56556093]
[1770114962366,3.58505727,102.62,102.57,8.7817]
[1770114962666,3.58505727,102.62,102.57,12.34726093]
[1770114963368,3.58505727,102.62,102.57,3.56556093]
[1770114963860,392.28505727,102.64,102.57,3.56556093]
[1770114964065,392.28505727,102.64,102.59,8.7801]
[1770114965170,12.35925727,102.66,102.6,8.7793]
[1770114965465,3.58505727,102.66,102.6,8.7793]
[1770114967562,3.58505727,102.65,102.6,8.7793]
[1770114969264,345.79476142,102.67,102.61,12.34386093]
[1770114969569,339.28505727,102.67,102.61,3.56556093]
[1770114970370,398.81476142,102.69,102.62,3.56556093]
[1770114970563,392.30505727,102.69,102.62,3.56556093]
[1770114970767,3.58505727,102.68,102.62,3.56556093]
[1770114971169,3.58505727,102.68,102.63,8.7764]
[1770114973267,388.72,102.69,102.64,8.7757]
[1770114973564,388.72,102.69,102.64,3.56556093]
[1770114973769,388.72,102.69,102.65,8.7749]
[1770114975066,392.30505727,102.69,102.64,12.34146093]
[1770114976669,392.30505727,102.69,102.64,8.7759]
[1770114977572,392.30505727,102.69,102.63,8.7768]
[1770114977573,401.07675727,102.69,102.63,8.7768]
[1770114977773,3.58505727,102.68,102.63,8.7768]
[1770114977974,3.58505727,102.68,102.62,3.56556093]
[1770114978173,3.58505727,102.67,102.62,3.56556093]
[1770114979372,3.58505727,102.67,102.62,12.34316093]
[1770114980475,3.58505727,102.67,102.59,136.5808]
[1770114980476,3.67127509,102.65,102.59,3.603822]
[1770114980877,12.44737509,102.64,102.59,3.603822]
[1770114981174,3.67127509,102.63,102.58,8.781]
[1770114981377,8.7778,102.62,102.57,3.603822]
[1770114981575,3.67127509,102.61,102.55,3.603822]
[1770114981768,3.67127509,102.6,102.55,3.603822]
[1770114981970,3.67127509,102.6,102.53,3.603822]
[1770114983379,12.45057509,102.6,102.54,8.7844]
[1770114983877,12.45147509,102.59,102.53,3.603822]
[1770114984270,3.67127509,102.58,102.51,3.603822]
[1770114984474,3.67127509,102.57,102.51,3.603822]
[1770114985078,3.67127509,102.57,102.51,12.390822]
[1770114986780,3.67127509,102.57,102.52,12.390022]
[1770114987283,3.67127509,102.57,102.5,136.7]
[1770114987284,3.67127509,102.57,102.5,12.390922]
[1770114987678,3.67127509,102.56,102.5,12.390922]
[1770114987881,6.50970415,102.52,102.45,3.603822]
[1770114988184,10.18097924,102.52,102.45,3.603822]
[1770114988381,3.67127509,102.51,102.45,3.603822]
[1770114988581,3.67127509,102.51,102.43,3.603822]
[1770114988582,10.18097924,102.5,102.43,3.603822]
[1770114988786,3.67127509,102.49,102.43,3.603822]
[1770114989382,10.18097924,102.48,102.41,3.603822]
[1770114990085,3.67127509,102.46,102.39,3.603822]
[1770114990286,3.67127509,102.45,102.39,3.603822]
[1770114992284,10.18097924,102.47,102.39,140.451022]
[1770114992588,201.94097924,102.47,102.4,3.603822]
[1770114992988,3.67127509,102.46,102.4,3.603822]
[1770114994295,392.67127509,102.48,102.42,3.603822]
[1770114994688,389.0,102.48,102.43,3.603822]
[1770114994993,389.0,102.48,102.44,3.603822]
[1770114995194,389.0,102.48,102.43,8.7937]
[1770114996590,3.67127509,102.52,102.45,145.5559]
[1770114996793,3.67127509,102.52,102.45,136.764]
[1770114997594,36.69420024,102.54,102.46,136.7539]
[1770114997890,36.69420024,102.54,102.46,145.5444]
[1770114998095,36.69420024,102.54,102.47,136.7365]
[1770114998488,36.69420024,102.54,102.48,136.7226]
[1770114999298,36.69420024,102.54,102.48,145.5118]
[1770114999499,36.69420024,102.54,102.48,8.7892]
[1770115006197,36.69420024,102.54,102.49,8.7884]
[1770115007504,36.69420024,102.54,102.47,136.7405]
[1770115008101,36.71989183,102.56,102.48,136.7226]
[1770115008399,36.71989183,102.56,102.49,136.7083]
[1770115009302,179.4,102.57,102.52,8.7861]
[1770115009602,45.49366505,102.58,102.52,8.7861]
[1770115009603,36.71266505,102.58,102.52,8.7861]
[1770115010197,45.49376505,102.58,102.52,8.7861]
[1770115010602,36.71266505,102.58,102.52,8.7861]
[1770115012601,36.71266505,102.58,102.53,8.7852]
[1770115014502,45.54509322,102.6,102.54,8.7844]
[1770115020506,45.57879776,102.59,102.53,8.7852]
[1770115021511,36.79839776,102.59,102.53,8.7852]
[1770115021711,36.79839776,102.59,102.54,8.7843]
[1770115022310,36.79839776,102.59,102.55,8.7835]
[1770115023412,36.79839776,102.59,102.56,8.7827]
[1770115024707,36.79839776,102.59,102.52,136.666]
[1770115025714,36.79839776,102.59,102.54,8.7838]
[1770115025909,36.79839776,102.59,102.52,136.666]
[1770115026212,36.79839776,102.59,102.53,136.6612]
[1770115026810,21.42159776,102.59,102.56,8.782]
[1770115027113,9.776e-05,102.59,102.56,8.782]
[1770115028415,9.776e-05,102.59,102.54,8.7837]
[1770115031509,14.09723381,102.56,102.5,8.7874]
[1770115033315,14.19252515,102.55,102.5,8.7874]
[1770115033815,14.19252515,102.55,102.48,8.789]
[1770115034515,14.19252515,102.55,102.49,8.7887]
[1770115035915,22.97622515,102.55,102.49,8.7887]
[1770115037714,23.00185016,102.54,102.48,8.7896]
[1770115037924,14.22012523,102.53,102.48,8.7896]
[1770115038723,23.00552523,102.53,102.48,8.7896]
[1770115041721,22.97491983,102.52,102.44,136.7695]
[1770115043017,14.10751228,102.49,102.41,138.51445797]
[1770115043218,14.10751228,102.49,102.41,136.8164]
[1770115043920,20.6429189,102.51,102.42,136.7965]
[1770115044221,14.10870616,102.51,102.42,136.7965]
[1770115044416,14.10870616,102.51,102.42,380.5365]
[1770115044813,14.0207288,102.53,102.45,136.7604]
[1770115045020,14.0207288,102.53,102.46,136.7531]
[1770115045714,14.0207288,102.53,102.49,8.7887]
[1770115046527,22.80468621,102.55,102.49,8.7887]
[1770115046720,14.02098621,102.55,102.5,8.7877]
[1770115047220,14.02098621,102.55,102.49,136.714]
[1770115047726,13.96259505,102.57,102.51,8.787]
[1770115047926,13.96259505,102.57,102.5,136.6998]
[1770115049428,13.96259505,102.57,102.52,8.786]
[1770115049929,13.96168889,102.61,102.53,136.6605]
[1770115050832,13.96168889,102.61,102.56,8.7827]
[1770115053226,13.94799138,102.6,102.53,136.6605]
[1770115054127,13.94799138,102.6,102.51,136.687]
[1770115054432,13.94799138,102.6,102.52,245.66]
[1770115054622,13.94799138,102.6,102.52,382.334]
[1770115055426,22.72729138,102.6,102.54,8.7844]
[1770115055835,13.94799138,102.6,102.54,8.7844]
[1770115057039,13.94799138,102.6,102.52,382.934]
[1770115057040,13.94799138,102.6,102.55,8.7835]
[1770115058842,13.81814282,102.62,102.55,136.634]
[1770115060338,13.81814282,102.62,102.57,8.7817]
[1770115063149,13.43719946,102.61,102.56,8.7827]
[1770115064051,13.4332363,102.62,102.57,8.7818]
[1770115067054,13.48442667,102.61,102.57,8.7818]
[1770115067453,13.48442667,102.61,102.56,8.7827]
[1770115069256,22.26302667,102.61,102.56,8.7827]
[1770115069457,13.46393341,102.6,102.56,8.7827]
[1770115069751,13.46393341,102.6,102.52,136.674]
[1770115069752,8.7797,102.6,102.54,8.7836]
[1770115069952,13.46055563,102.59,102.54,8.7836]
[1770115070752,13.46055563,102.59,102.51,136.6873]
[1770115070753,22.24085563,102.59,102.53,8.7853]
[1770115071153,13.49394693,102.58,102.53,8.7853]
[1770115072556,22.27514693,102.58,102.53,8.7853]
[1770115076354,13.49394693,102.58,102.53,8.7853]
[1770115076559,13.43651467,102.6,102.54,8.7841]
[1770115076956,13.47814112,102.58,102.52,8.7853]
[1770115077358,13.47814112,102.58,102.51,136.6875]
[1770115078457,13.47814112,102.58,102.53,8.785]
[1770115079458,13.47814112,102.58,102.54,8.7843]
[1770115079656,22.24996011,102.6,102.54,8.7843]
[1770115079856,13.46774605,102.59,102.54,8.7843]
[1770115081863,22.23590932,102.61,102.55,8.7834]
[1770115082655,13.45730932,102.59,102.54,8.7843]
[1770115082963,13.45730932,102.59,102.53,246.82]
[1770115084159,22.23770932,102.59,102.54,8.7843]
[1770115087463,13.24829607,102.58,102.54,8.7843]
[1770115087766,22.02959607,102.58,102.53,8.7853]
[1770115089767,22.01049365,102.57,102.51,257.2464]
[1770115090162,13.22839365,102.57,102.51,257.2464]
[1770115090669,13.22839365,102.57,102.52,8.7861]
[1770115091059,13.22839365,102.57,102.51,248.46]
[1770115091570,13.16270348,102.59,102.51,385.1436]
[1770115092067,13.16270348,102.59,102.54,8.7836]
[1770115092661,13.16270348,102.59,102.55,8.7834]
[1770115092964,13.16270348,102.59,102.53,136.6574]
[1770115093364,13.16270348,102.59,102.54,136.6434]
[1770115093763,13.16270348,102.59,102.57,8.7819]
[1770115093967,13.12745449,102.61,102.57,8.7819]
[1770115094568,13.12745449,102.61,102.58,8.7809]
[1770115097365,13.12745449,102.61,102.59,8.7801]
[1770115097572,12.96180926,102.63,102.59,8.7801]
[1770115098475,15.39381617,102.63,102.59,8.7801]
[1770115098878,15.39381617,102.63,102.6,8.7792]
[1770115099373,12.96180926,102.63,102.61,8.7783]
[1770115100474,2.43200691,102.64,102.59,136.5766]
[1770115100675,15.33977761,102.64,102.59,136.5766]
[1770115101174,15.33977761,102.64,102.61,8.7777]
[1770115102975,15.33977761,102.64,102.62,8.7774]
[1770115103974,15.33977761,102.64,102.59,136.5766]
[1770115104173,15.33977761,102.64,102.59,142.11694842]
[1770115104174,12.9077707,102.64,102.59,142.11694842]
[1770115104772,2.43200691,102.65,102.6,142.31169237]
[1770115104975,2.43200691,102.65,102.62,136.5395]
[1770115105170,10.78658831,102.66,102.64,8.7759]
[1770115106072,10.78658831,102.66,102.62,136.5395]
[1770115106276,10.78658831,102.66,102.61,142.30169237]
[1770115106668,2.43200691,102.65,102.63,8.776]
[1770115108177,2.43200691,102.65,102.64,8.7759]
[1770115108575,10.78658831,102.66,102.64,8.7759]
[1770115108774,10.78658831,102.7,102.63,147.31185835]
[1770115109077,13.21859522,102.68,102.63,147.31185835]
[1770115109278,2.43200691,102.66,102.62,136.5381]
[1770115109468,2.43200691,102.66,102.62,147.32985835]
[1770115110072,2.43200691,102.66,102.64,8.7752]
[1770115111572,13.21859522,102.66,102.61,136.5518]
[1770115111778,13.21859522,102.66,102.61,147.34355835]
[1770115112673,10.78658831,102.66,102.63,8.7761]
[1770115112876,13.21859522,102.66,102.61,147.34355835]
[1770115113075,13.21859522,102.66,102.64,8.7756]
[1770115113277,13.21859522,102.66,102.61,147.34355835]
[1770115114879,10.78658831,102.66,102.61,147.34355835]
[1770115115373,10.78658831,102.66,102.64,8.7759]
[1770115117981,10.78658831,102.66,102.63,8.7768]
[1770115119989,10.78658831,102.66,102.62,8.7776]
[1770115120692,10.78658831,102.66,102.63,8.7767]
[1770115124488,10.78658831,102.68,102.62,10.79175835]
[1770115124686,10.78658831,102.68,102.64,8.7754]
[1770115124886,10.78658831,102.68,102.64,2.43036376]
[1770115125090,10.78658831,102.7,102.66,8.7741]
[1770115129489,10.78658831,102.7,102.67,8.7733]
[1770115130784,11.34196174,102.72,102.68,11.20276376]
[1770115130986,11.34196174,102.72,102.68,2.43036376]
[1770115131393,12.04939645,102.74,102.7,8.7707]
[1770115131794,12.04939645,102.74,102.69,14.31499683]
[1770115131990,12.04939645,102.74,102.7,2.43036376]
[1770115132296,12.04939645,102.74,102.71,8.7696]
[1770115132489,12.04939645,102.74,102.69,11.88463307]
[1770115133384,12.04939645,102.74,102.7,8.7707]
[1770115136796,12.04939645,102.74,102.71,8.7697]
[1770115137096,12.04939645,102.77,102.71,8.7697]
[1770115137498,12.04939645,102.77,102.72,8.769]
[1770115137697,12.04939645,102.77,102.72,2.43036376]
[1770115138587,12.04939645,102.77,102.71,14.31499683]
[1770115139395,12.04939645,102.77,102.73,8.768]
[1770115140505,12.04939645,102.77,102.7,2.43036376]
[1770115140694,14.47976021,102.77,102.69,150.76259683]
[1770115141193,14.47976021,102.77,102.71,8.7692]
[1770115141389,12.04939645,102.77,102.71,8.7692]
[1770115141598,12.04939645,102.77,102.71,2.43036376]
[1770115142198,12.04939645,102.77,102.72,8.7688]
[1770115143597,14.47976021,102.77,102.71,8.7698]
[1770115143798,14.47976021,102.76,102.71,8.7698]
[1770115147599,2.43036376,102.77,102.72,20.65343307]
[1770115147802,12.04939645,102.77,102.72,20.65343307]
[1770115149407,14.47976021,102.76,102.72,8.7688]
[1770115150698,2.43036376,102.74,102.7,20.65533307]
[1770115151102,14.47976021,102.74,102.7,20.65533307]
[1770115151605,14.47976021,102.74,102.69,8.7715]
[1770115153301,23.24716021,102.74,102.69,8.7715]
[1770115156412,14.47976021,102.72,102.66,11.88463307]
[1770115157411,14.47976021,102.72,102.67,8.7733]
[1770115158604,2.43036376,102.7,102.66,20.65863307]
[1770115160812,2.43036376,102.7,102.67,8.7732]
[1770115164909,12.04939645,102.72,102.67,13.48047306]
[1770115165109,2.43036376,102.72,102.67,13.48047306]
[1770115166217,2.43036376,102.72,102.69,8.7715]
[1770115168110,12.85014257,102.73,102.68,13.48047306]
[1770115169527,12.85014257,102.73,102.7,8.7707]
[1770115169714,2.43036376,102.74,102.7,13.48047306]
[1770115170110,12.85014257,102.75,102.71,8.7693]
[1770115170720,2.43036376,102.76,102.72,22.24937306]
[1770115173214,2.43036376,102.76,102.73,8.7679]
[1770115173416,2.43036376,102.76,102.72,13.48047306]
[1770115174220,2.43036376,102.76,102.72,22.24937306]
[1770115176517,12.85014257,102.79,102.73,13.48047306]
[1770115176717,2.43036376,102.78,102.73,13.48047306]
[1770115177324,2.43036376,102.8,102.74,13.48047306]
[1770115177624,15.28050633,102.8,102.74,13.48047306]
[1770115178013,15.28050633,102.8,102.75,8.7658]
[1770115178418,2.42455272,102.79,102.75,8.7658]
[1770115179329,15.27469529,102.79,102.74,22.24767306]
[1770115180135,12.85014257,102.79,102.74,22.24767306]
[1770115180328,2.42455272,102.78,102.74,22.24767306]
[1770115184634,15.27469529,102.76,102.7,12.8223795]
[1770115186432,15.27469529,102.76,102.71,22.16854578]
[1770115187536,15.27469529,102.76,102.72,8.769]
[1770115188635,15.27469529,102.76,102.71,22.16844578]
[1770115189330,24.04049529,102.76,102.71,13.39874578]
[1770115190236,15.27469529,102.76,102.71,13.39874578]
[1770115193625,15.27469529,102.76,102.71,22.16834578]
[1770115197737,13.86813588,102.78,102.73,13.2255513]
[1770115198041,16.2926886,102.78,102.73,13.2255513]
[1770115198437,16.2926886,102.78,102.73,21.9936513]
[1770115200839,2.42455272,102.78,102.74,21.9928513]
[1770115202434,2.42455272,102.78,102.75,8.7664]
[1770115202837,2.42455272,102.8,102.75,21.9919513]
[1770115203440,16.2926886,102.8,102.75,21.9919513]
[1770115204339,16.2926886,102.78,102.74,8.7673]
[1770115204741,16.2926886,102.78,102.73,13.2255513]
[1770115204940,16.2926886,102.78,102.73,21.9936513]
[1770115205241,16.2926886,102.78,102.73,13.2255513]
[1770115205242,2.42455272,102.76,102.73,13.2255513]
[1770115205435,2.42455272,102.76,102.71,13.2255513]
[1770115206849,2.42455272,102.77,102.73,13.2255513]
[1770115207248,16.2926886,102.77,102.73,13.2255513]
[1770115211751,2.42455272,102.77,102.74,13.2255513]
[1770115212246,16.2926886,102.77,102.72,13.2255513]
[1770115213251,16.2926886,102.77,102.72,21.9945513]
[1770115213646,25.0575886,102.77,102.72,21.9945513]
[1770115215154,25.0575886,102.77,102.72,13.2255513]
[1770115215449,2.42455272,102.75,102.72,13.2255513]
[1770115217654,2.42455272,102.73,102.69,8.7716]
[1770115218746,2.42455272,102.73,102.69,21.9971513]
[1770115218948,2.42455272,102.75,102.71,13.2255513]
[1770115220354,2.42455272,102.75,102.71,21.9946513]
[1770115223956,2.42455272,102.75,102.72,14.97185955]
[1770115227258,2.42455272,102.78,102.73,14.97185955]
[1770115228458,2.42455272,102.78,102.73,23.74005955]
[1770115229160,17.14835825,102.78,102.73,23.74005955]
[1770115229359,25.91245825,102.78,102.73,14.97185955]
[1770115238453,25.91307714,102.78,102.73,14.97185955]
[1770115239466,25.91307714,102.78,102.74,14.97185955]
[1770115239666,17.14897714,102.78,102.74,14.97185955]
[1770115240968,17.14897714,102.78,102.74,23.73915955]
[1770115241369,17.14897714,102.78,102.74,14.97185955]
[1770115244865,17.14897714,102.78,102.74,23.73925955]
[1770115258273,2.42517161,102.76,102.73,8.7679]
[1770115258481,2.42517161,102.74,102.71,14.72304506]
[1770115258976,2.42517161,102.74,102.71,23.49294506]
[1770115259279,15.02037838,102.77,102.71,14.72304506]
[1770115259478,2.42517161,102.75,102.72,23.49194506]
[1770115260485,305.02037838,102.77,102.73,23.49094506]
[1770115260486,307.44554999,102.77,102.73,23.49094506]
[1770115261284,17.44554999,102.77,102.73,23.49094506]
[1770115261477,2.42517161,102.77,102.74,23.49034506]
[1770115264484,2.42517161,102.77,102.72,23.49134506]
[1770115264788,2.42517161,102.75,102.72,23.49134506]
[1770115265788,2.42517161,102.75,102.72,14.72304506]
[1770115266585,2.42517161,102.75,102.71,8.7697]
[1770115271584,17.44554999,102.75,102.71,8.7697]
[1770115271792,26.21224999,102.75,102.7,15.74007291]
[1770115271991,26.21224999,102.75,102.71,7.1480837]
[1770115276797,2.42517161,102.78,102.72,7.51205584]
[1770115276996,17.44554999,102.78,102.72,7.51205584]
[1770115278299,17.44554999,102.78,102.73,13.9055855]
[1770115279495,2.42517161,102.8,102.74,5.20085367]
[1770115281392,2.42517161,102.8,102.76,8.7655]
[1770115282399,2.42517161,102.8,102.75,13.9136354]
[1770115282895,17.44356771,102.78,102.73,5.20451541]
[1770115283096,136.2902,102.81,102.71,5.20451541]
[1770115283097,2.42517161,102.76,102.71,5.20451541]
[1770115283298,2.42517161,102.74,102.69,5.20451541]
[1770115283497,2.42517161,102.74,102.68,5.20451541]
[1770115283498,17.44356771,102.74,102.68,5.20451541]
[1770115283697,2.42517161,102.72,102.68,5.20451541]
[1770115284496,2.42517161,102.72,102.69,5.25197342]
[1770115285097,2.42517161,102.72,102.69,14.02287342]
[1770115285601,15.0183961,102.75,102.7,8.7704]
[1770115285802,2.42517161,102.73,102.7,8.7704]
[1770115287393,2.42517161,102.73,102.69,14.02347342]
[1770115289501,17.44356771,102.73,102.69,5.25197342]
[1770115291700,2.42517161,102.71,102.67,15.14420772]
[1770115292003,2.42517161,102.71,102.68,6.41518611]
[1770115293804,2.42517161,102.71,102.67,8.7732]
[1770115294512,2.42517161,102.71,102.67,15.13033601]
[1770115296910,2.42517161,102.71,102.64,397.7143]
[1770115296911,2.42517161,102.69,102.65,6.42401071]
[1770115297610,2.42517161,102.71,102.67,6.48375161]
[1770115298406,2.42809708,102.71,102.67,15.25675161]
[1770115298811,2.42809708,102.71,102.68,6.52495036]
[1770115299508,23.7864961,102.74,102.69,6.55433956]
[1770115299713,2.42809708,102.73,102.69,6.55433956]
[1770115300416,11.19629708,102.73,102.68,6.59452198]
[1770115300610,26.21469318,102.73,102.68,6.59452198]
[1770115300913,2.42809708,102.71,102.68,6.59452198]
[1770115301411,2.42809708,102.71,102.66,15.43265656]
[1770115301715,2.42809708,102.71,102.67,6.65865656]
[1770115302513,2.42809708,102.71,102.67,15.43195656]
[1770115304920,2.42809708,102.71,102.68,6.51031884]
[1770115308318,15.0183961,102.72,102.68,15.28271884]
[1770115308514,2.42809708,102.72,102.68,15.28271884]
[1770115310819,11.19719708,102.72,102.68,6.51031884]
[1770115312624,2.42809708,102.72,102.68,15.28251884]
[1770115320428,2.42809708,102.74,102.7,7.00348907]
[1770115322230,2.42809708,102.74,102.72,7.11596702]
[1770115325128,17.91619474,102.74,102.68,7.27894263]
[1770115326330,26.68359474,102.74,102.69,16.07915886]
[1770115329036,15.48809766,102.73,102.69,16.07915886]
[1770115329237,2.42809708,102.72,102.69,7.30755886]
[1770115332441,2.42809708,102.72,102.69,16.07885886]
[1770115335245,15.48809766,102.69,102.64,399.1236]
[1770115335549,2.42809708,102.68,102.64,15.46122281]
[1770115342351,2.42809708,102.68,102.64,24.23702281]
[1770115342947,2.42809708,102.68,102.65,16.12337072]
[1770115344956,19.10257622,102.68,102.61,16.12337072]
[1770115345143,19.10257622,102.68,102.62,8.7774]